[Event "Titled Tuesday Blitz August 08 Early 2023"]
[White "Janaszak, Dawid"]
[Black "Carlsen, Magnus"]
[WhiteFideId "1119206"]
[BlackFideId "1503014"]
[WhiteElo "2527"]
[BlackElo "3253"]
[Result "0-1"]
[Round "1"]
[TimeControl "180+1"]
[Date "2023.08.08"]
[WhiteClock "0:00:02"]
[BlackClock "0:01:42"]
[Board "1"]

1. e4 {[%clk 0:03:00]}  c5 {[%clk 0:02:29]} 2. Nc3 {[%clk 0:03:00]}  Nc6 {[%clk 0:02:29]} 3. Bb5 {[%clk 0:02:59]}  Nd4 {[%clk 0:02:29]} 4. Nf3 {[%clk 0:02:59]}  Qa5 {[%clk 0:02:28]} 5. Bc4 {[%clk 0:02:47]}  e6 {[%clk 0:02:24]} 6. O-O {[%clk 0:02:46]}  b5 {[%clk 0:02:23]} 7. Bd3 {[%clk 0:02:41]}  Nxf3+ {[%clk 0:02:19]} 8. Qxf3 {[%clk 0:02:41]}  a6 {[%clk 0:02:17]} 9. e5 {[%clk 0:02:35]}  Rb8 {[%clk 0:02:12]} 10. Be4 {[%clk 0:02:29]}  Qc7 {[%clk 0:02:11]} 11. Qg3 {[%clk 0:02:16]}  b4 {[%clk 0:02:11]} 12. Nd1 {[%clk 0:02:11]}  d5 {[%clk 0:02:11]} 13. exd6 {[%clk 0:02:09]}  Bxd6 {[%clk 0:02:10]} 14. Qxg7 {[%clk 0:02:03]}  Bxh2+ {[%clk 0:02:10]} 15. Kh1 {[%clk 0:02:03]}  Be5 {[%clk 0:02:11]} 16. Qg5 {[%clk 0:02:03]}  Nf6 {[%clk 0:02:11]} 17. Bf3 {[%clk 0:02:00]}  Rg8 {[%clk 0:02:09]} 18. Qh4 {[%clk 0:01:58]}  Bb7 {[%clk 0:02:06]} 19. Bxb7 {[%clk 0:01:34]}  Qxb7 {[%clk 0:02:04]} 20. Ne3 {[%clk 0:01:34]}  Rd8 {[%clk 0:02:02]} 21. f4 {[%clk 0:01:25]}  Rd4 {[%clk 0:02:01]} 22. c3 {[%clk 0:01:15]}  Re4 {[%clk 0:01:59]} 23. Qh3 {[%clk 0:00:58]}  Rxf4 {[%clk 0:01:50]} 24. Rxf4 {[%clk 0:00:50]}  Bxf4 {[%clk 0:01:51]} 25. d4 {[%clk 0:00:42]}  Rg3 {[%clk 0:01:49]} 26. Qh4 {[%clk 0:00:32]}  Qe4 {[%clk 0:01:43]} 27. Bd2 {[%clk 0:00:15]}  Ng4 {[%clk 0:01:43]} 28. Rg1 {[%clk 0:00:03]}  Rh3+ {[%clk 0:01:41]} 29. Qxh3 {[%clk 0:00:02]}  Nf2# {[%clk 0:01:42]} 0-1


[Site "https://www.chess.com"]

[Event "Titled Tuesday Blitz August 08 Early 2023"]
[White "Eynullayev, Atilla"]
[Black "Nihal Sarin"]
[WhiteFideId "13413570"]
[BlackFideId "25092340"]
[WhiteElo "2525"]
[BlackElo "3139"]
[Result "0-1"]
[Round "1"]
[TimeControl "180+1"]
[Date "2023.08.08"]
[WhiteClock "0:00:07"]
[BlackClock "0:00:40"]
[Board "3"]

1. d4 {[%clk 0:03:00]}  d5 {[%clk 0:02:58]} 2. c4 {[%clk 0:03:01]}  e5 {[%clk 0:02:57]} 3. dxe5 {[%clk 0:03:01]}  d4 {[%clk 0:02:58]} 4. Nf3 {[%clk 0:03:01]}  Nc6 {[%clk 0:02:58]} 5. Nbd2 {[%clk 0:03:01]}  Nge7 {[%clk 0:02:57]} 6. a3 {[%clk 0:03:01]}  Ng6 {[%clk 0:02:55]} 7. g3 {[%clk 0:02:59]}  Ngxe5 {[%clk 0:02:53]} 8. Nxe5 {[%clk 0:02:59]}  Nxe5 {[%clk 0:02:54]} 9. Bg2 {[%clk 0:03:00]}  c6 {[%clk 0:02:46]} 10. O-O {[%clk 0:02:48]}  Be7 {[%clk 0:02:46]} 11. b3 {[%clk 0:02:43]}  O-O {[%clk 0:02:44]} 12. Bb2 {[%clk 0:02:44]}  a5 {[%clk 0:02:35]} 13. Ne4 {[%clk 0:02:26]}  c5 {[%clk 0:02:33]} 14. e3 {[%clk 0:02:25]}  Nc6 {[%clk 0:02:26]} 15. exd4 {[%clk 0:02:20]}  cxd4 {[%clk 0:02:27]} 16. Qh5 {[%clk 0:02:11]}  Be6 {[%clk 0:02:20]} 17. Rac1 {[%clk 0:01:55]}  Qb6 {[%clk 0:02:13]} 18. Qb5 {[%clk 0:01:40]}  Qxb5 {[%clk 0:02:13]} 19. cxb5 {[%clk 0:01:40]}  Na7 {[%clk 0:02:14]} 20. Rc7 {[%clk 0:01:13]}  Rfe8 {[%clk 0:02:01]} 21. Rxb7 {[%clk 0:01:10]}  Bd5 {[%clk 0:01:59]} 22. Nf6+ {[%clk 0:01:09]}  Bxf6 {[%clk 0:01:42]} 23. Bxd5 {[%clk 0:01:10]}  Red8 {[%clk 0:01:43]} 24. Bxf7+ {[%clk 0:01:00]}  Kh8 {[%clk 0:01:37]} 25. a4 {[%clk 0:01:01]}  Nc8 {[%clk 0:01:35]} 26. Be6 {[%clk 0:00:44]}  Nd6 {[%clk 0:01:31]} 27. Rd7 {[%clk 0:00:44]}  Ne4 {[%clk 0:01:25]} 28. Rd1 {[%clk 0:00:37]}  Rxd7 {[%clk 0:01:11]} 29. Bxd7 {[%clk 0:00:37]}  Nc3 {[%clk 0:01:10]} 30. Rd2 {[%clk 0:00:31]}  Kg8 {[%clk 0:01:02]} 31. Bc6 {[%clk 0:00:30]}  Rb8 {[%clk 0:01:02]} 32. f4 {[%clk 0:00:28]}  Kf7 {[%clk 0:01:01]} 33. Kf2 {[%clk 0:00:28]}  h5 {[%clk 0:00:55]} 34. Kf3 {[%clk 0:00:28]}  Ke6 {[%clk 0:00:55]} 35. h3 {[%clk 0:00:28]}  Rh8 {[%clk 0:00:54]} 36. Kf2 {[%clk 0:00:21]}  Kf5 {[%clk 0:00:50]} 37. b6 {[%clk 0:00:20]}  h4 {[%clk 0:00:48]} 38. g4+ {[%clk 0:00:19]}  Kxf4 {[%clk 0:00:48]} 39. Ba3 {[%clk 0:00:20]}  Ne4+ {[%clk 0:00:35]} 40. Bxe4 {[%clk 0:00:20]}  Kxe4 {[%clk 0:00:35]} 41. Bd6 {[%clk 0:00:20]}  d3 {[%clk 0:00:36]} 42. b7 {[%clk 0:00:18]}  Bd4+ {[%clk 0:00:37]} 43. Kg2 {[%clk 0:00:17]}  Ba7 {[%clk 0:00:37]} 44. Rd1 {[%clk 0:00:13]}  Bb8 {[%clk 0:00:37]} 45. Re1+ {[%clk 0:00:11]}  Kd4 {[%clk 0:00:37]} 46. Bxb8 {[%clk 0:00:10]}  Rxb8 {[%clk 0:00:38]} 47. Re7 {[%clk 0:00:10]}  d2 {[%clk 0:00:37]} 48. Rd7+ {[%clk 0:00:10]}  Kc3 {[%clk 0:00:38]} 49. Kf2 {[%clk 0:00:07]}  Rxb7 {[%clk 0:00:38]} 50. Rxb7 {[%clk 0:00:06]}  d1=Q {[%clk 0:00:39]} 51. Rc7+ {[%clk 0:00:07]}  Kxb3 {[%clk 0:00:39]} 52. Rb7+ {[%clk 0:00:07]}  Kxa4 {[%clk 0:00:39]} 53. Ke3 {[%clk 0:00:07]}  Qh1 {[%clk 0:00:38]} 54. Rxg7 {[%clk 0:00:07]}  Qxh3+ {[%clk 0:00:38]} 55. Kf4 {[%clk 0:00:07]}  Qg3+ {[%clk 0:00:38]} 56. Kf5 {[%clk 0:00:08]}  h3 {[%clk 0:00:39]} 57. Rh7 {[%clk 0:00:08]}  h2 {[%clk 0:00:40]} 58. g5 {[%clk 0:00:07]}  h1=Q {[%clk 0:00:40]} 0-1


[Site "https://www.chess.com"]

[Event "Titled Tuesday Blitz August 08 Early 2023"]
[White "Ansh M Shah"]
[Black "Firouzja, Alireza"]
[WhiteFideId "25033379"]
[BlackFideId "12573981"]
[WhiteElo "2524"]
[BlackElo "3094"]
[Result "0-1"]
[Round "1"]
[TimeControl "180+1"]
[Date "2023.08.08"]
[WhiteClock "0:00:00"]
[BlackClock "0:01:30"]
[Board "5"]

1. d4 {[%clk 0:03:00]}  Nf6 {[%clk 0:02:59]} 2. c4 {[%clk 0:03:00]}  g6 {[%clk 0:03:00]} 3. h4 {[%clk 0:03:00]}  Bg7 {[%clk 0:03:00]} 4. Nc3 {[%clk 0:02:59]}  c5 {[%clk 0:02:59]} 5. d5 {[%clk 0:02:59]}  e6 {[%clk 0:02:54]} 6. e4 {[%clk 0:02:58]}  d6 {[%clk 0:02:53]} 7. Be2 {[%clk 0:02:58]}  exd5 {[%clk 0:02:48]} 8. exd5 {[%clk 0:02:58]}  h5 {[%clk 0:02:45]} 9. Nf3 {[%clk 0:02:57]}  O-O {[%clk 0:02:45]} 10. Bf4 {[%clk 0:02:55]}  Re8 {[%clk 0:02:44]} 11. O-O {[%clk 0:02:55]}  a6 {[%clk 0:02:42]} 12. a4 {[%clk 0:02:54]}  b6 {[%clk 0:02:42]} 13. Re1 {[%clk 0:02:51]}  Ra7 {[%clk 0:02:42]} 14. Ng5 {[%clk 0:02:41]}  Rae7 {[%clk 0:02:42]} 15. Qd2 {[%clk 0:02:33]}  Bf5 {[%clk 0:02:41]} 16. Bf3 {[%clk 0:02:22]}  Qc7 {[%clk 0:02:23]} 17. Rxe7 {[%clk 0:01:59]}  Qxe7 {[%clk 0:02:24]} 18. a5 {[%clk 0:01:56]}  bxa5 {[%clk 0:02:22]} 19. Rxa5 {[%clk 0:01:02]}  Nfd7 {[%clk 0:02:22]} 20. Ra1 {[%clk 0:00:38]}  Ne5 {[%clk 0:02:20]} 21. Be2 {[%clk 0:00:34]}  Qb7 {[%clk 0:02:17]} 22. Re1 {[%clk 0:00:28]}  Nbd7 {[%clk 0:02:15]} 23. Nce4 {[%clk 0:00:22]}  Bxe4 {[%clk 0:02:00]} 24. Nxe4 {[%clk 0:00:21]}  Qb6 {[%clk 0:02:00]} 25. Bg5 {[%clk 0:00:13]}  Rb8 {[%clk 0:01:56]} 26. f4 {[%clk 0:00:09]}  Ng4 {[%clk 0:01:54]} 27. Bxg4 {[%clk 0:00:09]}  hxg4 {[%clk 0:01:55]} 28. f5 {[%clk 0:00:09]}  gxf5 {[%clk 0:01:55]} 29. Ng3 {[%clk 0:00:07]}  Bd4+ {[%clk 0:01:49]} 30. Kh1 {[%clk 0:00:07]}  Qxb2 {[%clk 0:01:45]} 31. Qf4 {[%clk 0:00:07]}  Qf2 {[%clk 0:01:41]} 32. Rf1 {[%clk 0:00:06]}  Qxf4 {[%clk 0:01:35]} 33. Rxf4 {[%clk 0:00:07]}  Rb1+ {[%clk 0:01:33]} 34. Nf1 {[%clk 0:00:06]}  g3 {[%clk 0:01:30]} 35. Rxf5 {[%clk 0:00:00]}  Bf2 {[%clk 0:01:30]} 0-1


[Site "https://www.chess.com"]

[Event "Titled Tuesday Blitz August 08 Early 2023"]
[White "Lehtosaari, Mauri"]
[Black "Fedoseev, Vladimir"]
[WhiteFideId "501999"]
[BlackFideId "24130737"]
[WhiteElo "2520"]
[BlackElo "3082"]
[Result "0-1"]
[Round "1"]
[TimeControl "180+1"]
[Date "2023.08.08"]
[WhiteClock "0:00:46"]
[BlackClock "0:01:11"]
[Board "7"]

1. d4 {[%clk 0:02:54]}  Nf6 {[%clk 0:02:58]} 2. Nf3 {[%clk 0:02:53]}  g6 {[%clk 0:02:58]} 3. Bg5 {[%clk 0:02:54]}  Bg7 {[%clk 0:02:55]} 4. Nbd2 {[%clk 0:02:53]}  O-O {[%clk 0:02:52]} 5. e3 {[%clk 0:02:53]}  d6 {[%clk 0:02:53]} 6. Bc4 {[%clk 0:02:50]}  Nbd7 {[%clk 0:02:52]} 7. O-O {[%clk 0:02:50]}  a6 {[%clk 0:02:52]} 8. a4 {[%clk 0:02:50]}  b6 {[%clk 0:02:52]} 9. c3 {[%clk 0:02:48]}  Bb7 {[%clk 0:02:53]} 10. Ba2 {[%clk 0:02:46]}  Qc8 {[%clk 0:02:51]} 11. Rc1 {[%clk 0:02:42]}  e6 {[%clk 0:02:49]} 12. Re1 {[%clk 0:02:39]}  h6 {[%clk 0:02:45]} 13. Bxf6 {[%clk 0:02:31]}  Nxf6 {[%clk 0:02:37]} 14. Qc2 {[%clk 0:02:29]}  b5 {[%clk 0:02:33]} 15. h3 {[%clk 0:02:13]}  Qd7 {[%clk 0:02:32]} 16. e4 {[%clk 0:02:13]}  Nh5 {[%clk 0:02:14]} 17. Nf1 {[%clk 0:02:05]}  bxa4 {[%clk 0:02:04]} 18. Kh2 {[%clk 0:01:54]}  Rfc8 {[%clk 0:02:00]} 19. Ng3 {[%clk 0:01:49]}  Nxg3 {[%clk 0:01:56]} 20. fxg3 {[%clk 0:01:49]}  c5 {[%clk 0:01:46]} 21. dxc5 {[%clk 0:01:42]}  Rxc5 {[%clk 0:01:44]} 22. Qd2 {[%clk 0:01:34]}  Rd8 {[%clk 0:01:43]} 23. Rcd1 {[%clk 0:01:33]}  a3 {[%clk 0:01:39]} 24. Nd4 {[%clk 0:01:25]}  axb2 {[%clk 0:01:35]} 25. Qxb2 {[%clk 0:01:26]}  Ba8 {[%clk 0:01:32]} 26. Bb3 {[%clk 0:01:25]}  Qc8 {[%clk 0:01:28]} 27. Rc1 {[%clk 0:01:21]}  h5 {[%clk 0:01:24]} 28. Qa2 {[%clk 0:01:20]}  Re8 {[%clk 0:01:23]} 29. Qa4 {[%clk 0:01:12]}  a5 {[%clk 0:01:20]} 30. Ba2 {[%clk 0:01:05]}  Re7 {[%clk 0:01:18]} 31. Qa3 {[%clk 0:00:58]}  Rec7 {[%clk 0:01:14]} 32. Qb2 {[%clk 0:00:46]}  Bxd4 {[%clk 0:01:11]} 0-1


[Site "https://www.chess.com"]

[Event "Titled Tuesday Blitz August 08 Early 2023"]
[White "Erigaisi Arjun"]
[Black "Sidletskyi, Ivan"]
[WhiteFideId "35009192"]
[BlackFideId "14156024"]
[WhiteElo "3075"]
[BlackElo "2517"]
[Result "1-0"]
[Round "1"]
[TimeControl "180+1"]
[Date "2023.08.08"]
[WhiteClock "0:01:52"]
[BlackClock "0:00:01"]
[Board "8"]

1. c4 {[%clk 0:03:00]}  Nf6 {[%clk 0:02:53]} 2. b3 {[%clk 0:03:00]}  e6 {[%clk 0:02:46]} 3. Bb2 {[%clk 0:03:00]}  d5 {[%clk 0:02:47]} 4. Nf3 {[%clk 0:03:00]}  Be7 {[%clk 0:02:47]} 5. g3 {[%clk 0:03:00]}  O-O {[%clk 0:02:48]} 6. Bg2 {[%clk 0:03:00]}  c5 {[%clk 0:02:48]} 7. O-O {[%clk 0:03:00]}  b6 {[%clk 0:02:48]} 8. d4 {[%clk 0:03:00]}  Nc6 {[%clk 0:02:41]} 9. cxd5 {[%clk 0:02:57]}  Nxd5 {[%clk 0:02:41]} 10. e4 {[%clk 0:02:56]}  Nf6 {[%clk 0:02:39]} 11. d5 {[%clk 0:02:50]}  exd5 {[%clk 0:02:07]} 12. exd5 {[%clk 0:02:51]}  Nb4 {[%clk 0:02:03]} 13. Ne5 {[%clk 0:02:51]}  Ba6 {[%clk 0:01:54]} 14. Re1 {[%clk 0:02:47]}  Bd6 {[%clk 0:01:53]} 15. Nc6 {[%clk 0:02:40]}  Nxc6 {[%clk 0:01:36]} 16. dxc6 {[%clk 0:02:41]}  Rc8 {[%clk 0:01:36]} 17. Nc3 {[%clk 0:02:36]}  Bc7 {[%clk 0:01:14]} 18. a4 {[%clk 0:02:35]}  Bd3 {[%clk 0:01:00]} 19. Nb5 {[%clk 0:02:32]}  a6 {[%clk 0:00:52]} 20. Bxf6 {[%clk 0:02:31]}  gxf6 {[%clk 0:00:50]} 21. Qg4+ {[%clk 0:02:31]}  Bg6 {[%clk 0:00:49]} 22. Rad1 {[%clk 0:02:30]}  f5 {[%clk 0:00:43]} 23. Qf3 {[%clk 0:01:58]}  Qf6 {[%clk 0:00:30]} 24. Nxc7 {[%clk 0:01:59]}  Rxc7 {[%clk 0:00:31]} 25. h4 {[%clk 0:01:59]}  f4 {[%clk 0:00:30]} 26. h5 {[%clk 0:01:54]}  Bc2 {[%clk 0:00:29]} 27. Rd2 {[%clk 0:01:54]}  Bf5 {[%clk 0:00:27]} 28. Qxf4 {[%clk 0:01:54]}  Qc3 {[%clk 0:00:17]} 29. Qg5+ {[%clk 0:01:49]}  Kh8 {[%clk 0:00:16]} 30. Qxf5 {[%clk 0:01:50]}  Qxd2 {[%clk 0:00:15]} 31. Qf6+ {[%clk 0:01:50]}  Kg8 {[%clk 0:00:15]} 32. h6 {[%clk 0:01:51]}  Qxe1+ {[%clk 0:00:12]} 33. Kh2 {[%clk 0:01:51]}  Qc3 {[%clk 0:00:01]} 34. Qxc3 {[%clk 0:01:52]} 1-0


[Site "https://www.chess.com"]

[Event "Titled Tuesday Blitz August 08 Early 2023"]
[White "Tomb, Maroun"]
[Black "Martinez Alcantara, Jose Eduardo"]
[WhiteFideId "5300398"]
[BlackFideId "3805662"]
[WhiteElo "2509"]
[BlackElo "3015"]
[Result "0-1"]
[Round "1"]
[TimeControl "180+1"]
[Date "2023.08.08"]
[WhiteClock "0:00:29"]
[BlackClock "0:01:40"]
[Board "15"]

1. e4 {[%clk 0:02:53]}  c5 {[%clk 0:02:59]} 2. Ne2 {[%clk 0:02:52]}  d6 {[%clk 0:02:59]} 3. c3 {[%clk 0:02:52]}  Nf6 {[%clk 0:02:59]} 4. g3 {[%clk 0:02:46]}  Bd7 {[%clk 0:02:53]} 5. Bg2 {[%clk 0:02:42]}  Bc6 {[%clk 0:02:54]} 6. f3 {[%clk 0:02:41]}  e5 {[%clk 0:02:53]} 7. d4 {[%clk 0:02:39]}  Be7 {[%clk 0:02:53]} 8. Be3 {[%clk 0:02:33]}  O-O {[%clk 0:02:49]} 9. O-O {[%clk 0:02:32]}  Nbd7 {[%clk 0:02:45]} 10. Nd2 {[%clk 0:02:24]}  b5 {[%clk 0:02:43]} 11. g4 {[%clk 0:02:19]}  g6 {[%clk 0:02:39]} 12. h4 {[%clk 0:02:17]}  Ne8 {[%clk 0:02:36]} 13. h5 {[%clk 0:02:17]}  Bg5 {[%clk 0:02:35]} 14. f4 {[%clk 0:02:15]}  exf4 {[%clk 0:02:32]} 15. Nxf4 {[%clk 0:02:13]}  Nef6 {[%clk 0:02:30]} 16. Kh1 {[%clk 0:01:51]}  Qe8 {[%clk 0:02:15]} 17. d5 {[%clk 0:01:48]}  Bb7 {[%clk 0:02:14]} 18. Re1 {[%clk 0:01:23]}  Ne5 {[%clk 0:02:11]} 19. Nf3 {[%clk 0:01:20]}  Bxf4 {[%clk 0:02:09]} 20. Bxf4 {[%clk 0:01:19]}  Nfxg4 {[%clk 0:02:10]} 21. Qd2 {[%clk 0:01:05]}  f6 {[%clk 0:02:09]} 22. hxg6 {[%clk 0:00:54]}  hxg6 {[%clk 0:02:08]} 23. Bg3 {[%clk 0:00:54]}  Rf7 {[%clk 0:02:05]} 24. Kg1 {[%clk 0:00:50]}  Qe7 {[%clk 0:02:05]} 25. a4 {[%clk 0:00:49]}  bxa4 {[%clk 0:02:01]} 26. Rxa4 {[%clk 0:00:49]}  a6 {[%clk 0:02:02]} 27. b4 {[%clk 0:00:49]}  cxb4 {[%clk 0:02:01]} 28. Rxb4 {[%clk 0:00:50]}  Re8 {[%clk 0:01:56]} 29. Nd4 {[%clk 0:00:50]}  Bc8 {[%clk 0:01:55]} 30. Rb8 {[%clk 0:00:49]}  Qc7 {[%clk 0:01:51]} 31. Reb1 {[%clk 0:00:49]}  Rfe7 {[%clk 0:01:45]} 32. Qe2 {[%clk 0:00:47]}  Qxc3 {[%clk 0:01:44]} 33. Ne6 {[%clk 0:00:39]}  Qxg3 {[%clk 0:01:42]} 34. R1b7 {[%clk 0:00:29]}  Rxb7 {[%clk 0:01:40]} 0-1


[Site "https://www.chess.com"]

[Event "Titled Tuesday Blitz August 08 Early 2023"]
[White "Megaranto, Susanto"]
[Black "Vyatkin, Dmitry"]
[WhiteFideId "7101384"]
[BlackFideId "4171900"]
[WhiteElo "2998"]
[BlackElo "2508"]
[Result "1-0"]
[Round "1"]
[TimeControl "180+1"]
[Date "2023.08.08"]
[WhiteClock "0:00:33"]
[BlackClock "0:00:02"]
[Board "18"]

1. e4 {[%clk 0:02:58]}  e6 {[%clk 0:02:59]} 2. d4 {[%clk 0:02:56]}  d5 {[%clk 0:02:59]} 3. Nd2 {[%clk 0:02:52]}  c5 {[%clk 0:02:59]} 4. exd5 {[%clk 0:02:51]}  Qxd5 {[%clk 0:02:59]} 5. Ngf3 {[%clk 0:02:51]}  cxd4 {[%clk 0:03:00]} 6. Bc4 {[%clk 0:02:50]}  Qd6 {[%clk 0:03:00]} 7. O-O {[%clk 0:02:48]}  Nf6 {[%clk 0:03:00]} 8. Nb3 {[%clk 0:02:47]}  Nc6 {[%clk 0:03:00]} 9. Nbxd4 {[%clk 0:02:43]}  Nxd4 {[%clk 0:03:00]} 10. Qxd4 {[%clk 0:02:40]}  Qxd4 {[%clk 0:02:58]} 11. Nxd4 {[%clk 0:02:36]}  Bd7 {[%clk 0:02:59]} 12. c3 {[%clk 0:02:35]}  Rc8 {[%clk 0:02:51]} 13. Bb3 {[%clk 0:02:32]}  Bc5 {[%clk 0:02:40]} 14. Nc2 {[%clk 0:02:26]}  O-O {[%clk 0:02:37]} 15. Be3 {[%clk 0:02:25]}  Ne4 {[%clk 0:01:51]} 16. Rfd1 {[%clk 0:02:20]}  Bc6 {[%clk 0:01:51]} 17. f3 {[%clk 0:02:20]}  Bxe3+ {[%clk 0:01:50]} 18. Nxe3 {[%clk 0:02:20]}  Nc5 {[%clk 0:01:50]} 19. Rd4 {[%clk 0:02:16]}  Rfd8 {[%clk 0:01:44]} 20. Rad1 {[%clk 0:02:15]}  Rxd4 {[%clk 0:01:44]} 21. Rxd4 {[%clk 0:02:16]}  Nxb3 {[%clk 0:01:42]} 22. axb3 {[%clk 0:02:17]}  Kf8 {[%clk 0:01:40]} 23. b4 {[%clk 0:02:13]}  Ke7 {[%clk 0:01:38]} 24. Kf2 {[%clk 0:02:13]}  e5 {[%clk 0:01:30]} 25. Rd2 {[%clk 0:02:09]}  Ke6 {[%clk 0:01:30]} 26. h4 {[%clk 0:02:06]}  f5 {[%clk 0:01:26]} 27. g3 {[%clk 0:02:01]}  g6 {[%clk 0:01:07]} 28. f4 {[%clk 0:02:00]}  exf4 {[%clk 0:00:47]} 29. gxf4 {[%clk 0:01:59]}  Ke7 {[%clk 0:00:45]} 30. Nc4 {[%clk 0:01:54]}  Rd8 {[%clk 0:00:43]} 31. Rxd8 {[%clk 0:01:52]}  Kxd8 {[%clk 0:00:43]} 32. Ke3 {[%clk 0:01:53]}  Ke7 {[%clk 0:00:41]} 33. Kd4 {[%clk 0:01:52]}  Kf6 {[%clk 0:00:39]} 34. Nd6 {[%clk 0:01:51]}  h6 {[%clk 0:00:35]} 35. b5 {[%clk 0:01:43]}  Bg2 {[%clk 0:00:30]} 36. Nc8 {[%clk 0:01:20]}  g5 {[%clk 0:00:27]} 37. hxg5+ {[%clk 0:01:17]}  hxg5 {[%clk 0:00:28]} 38. Ke3 {[%clk 0:01:07]}  a6 {[%clk 0:00:13]} 39. bxa6 {[%clk 0:01:06]}  bxa6 {[%clk 0:00:13]} 40. Nb6 {[%clk 0:01:02]}  g4 {[%clk 0:00:12]} 41. Nd7+ {[%clk 0:01:00]}  Ke7 {[%clk 0:00:10]} 42. Nc5 {[%clk 0:01:00]}  Bf1 {[%clk 0:00:08]} 43. b3 {[%clk 0:01:00]}  Kd6 {[%clk 0:00:08]} 44. Na4 {[%clk 0:00:58]}  Bb5 {[%clk 0:00:03]} 45. Nb2 {[%clk 0:00:57]}  Bc6 {[%clk 0:00:02]} 46. Nd3 {[%clk 0:00:52]}  Bd5 {[%clk 0:00:01]} 47. c4 {[%clk 0:00:51]}  Be4 {[%clk 0:00:01]} 48. Nf2 {[%clk 0:00:39]}  Kc5 {[%clk 0:00:02]} 49. Nxe4+ {[%clk 0:00:37]}  fxe4 {[%clk 0:00:02]} 50. Kxe4 {[%clk 0:00:33]}  Kd6 {[%clk 0:00:02]} 1-0


[Site "https://www.chess.com"]

[Event "Titled Tuesday Blitz August 08 Early 2023"]
[White "Shubenkova, Veronika"]
[Black "Kramnik, Vladimir"]
[WhiteFideId "44124040"]
[BlackFideId "4101588"]
[WhiteElo "2504"]
[BlackElo "2995"]
[Result "0-1"]
[Round "1"]
[TimeControl "180+1"]
[Date "2023.08.08"]
[WhiteClock "0:00:49"]
[BlackClock "0:01:18"]
[Board "21"]

1. e4 {[%clk 0:02:59]}  c5 {[%clk 0:02:47]} 2. Nc3 {[%clk 0:02:59]}  Nc6 {[%clk 0:02:44]} 3. g3 {[%clk 0:02:59]}  g6 {[%clk 0:02:43]} 4. Bg2 {[%clk 0:03:00]}  Bg7 {[%clk 0:02:44]} 5. d3 {[%clk 0:03:00]}  d6 {[%clk 0:02:44]} 6. f4 {[%clk 0:03:00]}  Nf6 {[%clk 0:02:39]} 7. Nf3 {[%clk 0:03:00]}  O-O {[%clk 0:02:39]} 8. O-O {[%clk 0:03:01]}  Rb8 {[%clk 0:02:39]} 9. Rb1 {[%clk 0:03:01]}  b5 {[%clk 0:02:38]} 10. h3 {[%clk 0:03:00]}  b4 {[%clk 0:02:37]} 11. Ne2 {[%clk 0:03:00]}  c4 {[%clk 0:02:31]} 12. Be3 {[%clk 0:02:57]}  Ba6 {[%clk 0:02:24]} 13. g4 {[%clk 0:02:48]}  cxd3 {[%clk 0:02:18]} 14. cxd3 {[%clk 0:02:47]}  b3 {[%clk 0:02:16]} 15. a3 {[%clk 0:02:45]}  Nd7 {[%clk 0:02:15]} 16. Ne1 {[%clk 0:02:21]}  Nc5 {[%clk 0:02:02]} 17. e5 {[%clk 0:02:08]}  Na5 {[%clk 0:01:52]} 18. d4 {[%clk 0:02:06]}  Na4 {[%clk 0:01:50]} 19. Rf3 {[%clk 0:01:55]}  dxe5 {[%clk 0:01:46]} 20. fxe5 {[%clk 0:01:53]}  Nc4 {[%clk 0:01:45]} 21. Bc1 {[%clk 0:01:45]}  Nxe5 {[%clk 0:01:44]} 22. Rf2 {[%clk 0:01:37]}  Nc4 {[%clk 0:01:32]} 23. h4 {[%clk 0:01:25]}  e5 {[%clk 0:01:28]} 24. d5 {[%clk 0:01:24]}  Qxh4 {[%clk 0:01:25]} 25. Nc3 {[%clk 0:01:17]}  Nxc3 {[%clk 0:01:20]} 26. bxc3 {[%clk 0:01:16]}  b2 {[%clk 0:01:20]} 27. Bxb2 {[%clk 0:01:10]}  Ne3 {[%clk 0:01:20]} 28. Qf3 {[%clk 0:00:49]}  Nxg4 {[%clk 0:01:18]} 0-1


[Site "https://www.chess.com"]

[Event "Titled Tuesday Blitz August 08 Early 2023"]
[White "Oparin, Grigoriy"]
[Black "NicolaiMaxime"]
[WhiteFideId "24125890"]
[WhiteElo "2987"]
[BlackElo "2504"]
[Result "1-0"]
[Round "1"]
[TimeControl "180+1"]
[Date "2023.08.08"]
[WhiteClock "0:00:29"]
[BlackClock "0:00:23"]
[Board "22"]

1. b3 {[%clk 0:02:58]}  e5 {[%clk 0:02:57]} 2. Bb2 {[%clk 0:02:58]}  Nc6 {[%clk 0:02:57]} 3. c4 {[%clk 0:02:59]}  Bc5 {[%clk 0:02:56]} 4. e3 {[%clk 0:02:57]}  Nf6 {[%clk 0:02:55]} 5. Nc3 {[%clk 0:02:57]}  O-O {[%clk 0:02:55]} 6. Nge2 {[%clk 0:02:56]}  d6 {[%clk 0:02:55]} 7. Ng3 {[%clk 0:02:54]}  Bg4 {[%clk 0:02:54]} 8. Qb1 {[%clk 0:02:50]}  h5 {[%clk 0:02:53]} 9. h3 {[%clk 0:02:48]}  h4 {[%clk 0:02:52]} 10. Nge4 {[%clk 0:02:41]}  Bf5 {[%clk 0:02:48]} 11. Bd3 {[%clk 0:02:38]}  Nxe4 {[%clk 0:02:44]} 12. Bxe4 {[%clk 0:02:36]}  Bxe4 {[%clk 0:02:38]} 13. Qxe4 {[%clk 0:02:36]}  Qg5 {[%clk 0:02:37]} 14. Qg4 {[%clk 0:02:23]}  Qe7 {[%clk 0:02:25]} 15. Nd5 {[%clk 0:02:21]}  Qd8 {[%clk 0:02:24]} 16. O-O {[%clk 0:02:04]}  Nb4 {[%clk 0:02:23]} 17. d4 {[%clk 0:01:58]}  Nxd5 {[%clk 0:02:14]} 18. dxc5 {[%clk 0:01:57]}  f5 {[%clk 0:02:05]} 19. Qh5 {[%clk 0:01:56]}  Nb4 {[%clk 0:01:57]} 20. cxd6 {[%clk 0:01:54]}  cxd6 {[%clk 0:01:57]} 21. Rfd1 {[%clk 0:01:50]}  Qf6 {[%clk 0:01:56]} 22. Rd2 {[%clk 0:01:43]}  g6 {[%clk 0:01:46]} 23. Qf3 {[%clk 0:01:43]}  Qe7 {[%clk 0:01:33]} 24. Rad1 {[%clk 0:01:41]}  e4 {[%clk 0:01:33]} 25. Qf4 {[%clk 0:01:37]}  Nd3 {[%clk 0:01:32]} 26. Rxd3 {[%clk 0:01:37]}  exd3 {[%clk 0:01:33]} 27. Rxd3 {[%clk 0:01:34]}  Kh7 {[%clk 0:01:30]} 28. Rxd6 {[%clk 0:01:27]}  Rad8 {[%clk 0:01:27]} 29. c5 {[%clk 0:01:22]}  Rxd6 {[%clk 0:01:17]} 30. cxd6 {[%clk 0:01:21]}  Qd8 {[%clk 0:01:16]} 31. Be5 {[%clk 0:01:09]}  g5 {[%clk 0:01:13]} 32. Qc4 {[%clk 0:01:08]}  Qd7 {[%clk 0:01:11]} 33. e4 {[%clk 0:01:01]}  f4 {[%clk 0:01:08]} 34. Qd5 {[%clk 0:00:59]}  f3 {[%clk 0:01:07]} 35. Bd4 {[%clk 0:00:49]}  fxg2 {[%clk 0:01:04]} 36. Kxg2 {[%clk 0:00:50]}  Kg6 {[%clk 0:00:44]} 37. Be3 {[%clk 0:00:29]}  Qd8 {[%clk 0:00:31]} 38. e5 {[%clk 0:00:29]}  Rf5 {[%clk 0:00:27]} 39. Qe6+ {[%clk 0:00:29]}  Kh7 {[%clk 0:00:23]} 40. Qxf5+ {[%clk 0:00:29]} 1-0


[Site "https://www.chess.com"]